Cogmind - Beta 15 @@@ ROGUE MODE // 2025.08.19 @ 00:22:41 Player: Deou Result: Destroyed by G-34 Mercenary with Small Laser Performance ------------- Evolutions (1) 500 Regions Visited (2) 400 Robots Destroyed (28) 140 Value Destroyed (475) 475 Prototype IDs (0) 0 Alien Tech Used (0) 0 Bonus (0) 0 TOTAL SCORE: 1515 Bonus ------- None Cogmind --------- Core Integrity 0/400 Matter 224/300 Energy 160/160 System Corruption 0% Temperature Cool (-78) Movement Core (200) Ox3 Location -9/Materials Parts ------- > --- POWER (2) -------- Light Nuclear Core > --- PROPULSION (2) --- (None) > --- UTILITY (2) ------ Cryofiber Web Cryofiber Web > --- WEAPON (3) ------- Assault Rifle Light Assault Rifle > --- INVENTORY (5) ---- Light Nuclear Core Cryofiber Web Peak State ------------ > --- POWER ------------ Light Nuclear Core Light Nuclear Core > --- PROPULSION ------- Aluminum Leg Aluminum Leg > --- UTILITY ---------- Cryofiber Web Targeting Computer > --- WEAPON ----------- Pulse Rifle Pulse Rifle Pulse Rifle > --- INVENTORY -------- Light Nuclear Core Light Nuclear Core Cryofiber Web Targeting Computer [Rating: 22] Favorites ----------- Power Light Nuclear Core Engine Light Ion Engine Power Core Light Nuclear Core Propulsion Aluminum Leg Leg Aluminum Leg Utility Cryofiber Web Device Cryofiber Web Storage Small Storage Unit Processor Targeting Computer Weapon Pulse Rifle Energy Gun Pulse Rifle Ballistic Gun Light Assault Rifle Launcher Grenade Launcher Build | -11 -10 -9 ------- Run | Yrd Mat Mat Slots Evolved 2 | . . 2 Power 1 | . . 1 Propulsion . | . . . Utility . | . . . Weapon 1 | . . 1 Parts Attached 21 | 6 1 14 Power 6 | 1 . 5 Engine 2 | 1 . 1 Core 4 | . . 4 Reactor . | . . . Propulsion 2 | 2 . . Treads . | . . . Leg 2 | 2 . . Wheel . | . . . Hover . | . . . Flight . | . . . Utility 4 | 1 . 3 Device 2 | . . 2 Storage 1 | 1 . . Processor 1 | . . 1 Hackware . | . . . Protection . | . . . Artifact . | . . . Weapon 9 | 2 1 6 Energy Gun 5 | 1 . 4 Energy Cannon . | . . . Ballistic Gun 3 | 1 . 2 Ballistic Cannon . | . . . Launcher 1 | . 1 . Special Weapon . | . . . Impact Weapon . | . . . Slashing Weapon . | . . . Piercing Weapon . | . . . Special Melee Weapon . | . . . Unidentified Prototypes . | . . . Parts Lost 9 | . . 9 Power 3 | . . 3 Propulsion 2 | . . 2 Utility . | . . . Weapon 4 | . . 4 Highest Loss Streak 9 | . . 9 To Critical Strikes . | . . . Average Backups 4 | 3 5 5 Power 1 | . 1 1 Propulsion . | 1 2 . Utility 1 | . . 1 Weapon 1 | . 1 1 Tool/Special . | . . . Unused Backups 12 | 1 4 7 Power 2 | . 1 1 Propulsion 3 | 1 . 2 Utility 4 | . 2 2 Weapon 3 | . 1 2 Tool/Special . | . . . Average Slot Usage (%) 89 | . 85 92 Engine 5 | . 14 . Core 13 | . . 20 Leg 22 | . 28 19 Device 6 | . . 10 Storage 5 | . 14 1 Processor 5 | . . 8 Energy Gun 21 | . 8 27 Ballistic Gun 5 | . 14 1 Launcher 2 | . 5 . Peak Build Rating 22 | 6 6 22 Average Rating 13 | 4 5 19 On Entrance 4 | . 6 6 Naked Turns . | . . . Heaviest Build 24 | 11 12 24 Greatest Support 20 | 20 20 20 Greatest Overweight (x) 4 | . . 4 Average Overweight (x) . | . . . Largest Inventory Capacity 8 | 8 8 8 Average Capacity 6 | 7 8 5 Most Carried 8 | 5 8 8 Average Carried 4 | 3 5 5 Final Capacity 8 | 8 8 5 Final Carried 8 | 4 8 2 Class Distribution -------------------- 54% | Gunner 45% | Mutant Dominant Class ---------------- Mutant | -10/Materials Gunner | -9/Materials Resources | -11 -10 -9 ----------- Run | Yrd Mat Mat Matter Collected 428 | 196 100 132 Remotely . | . . . Salvage Created 809 | . 404 405 Parts 47 | . 25 22 Haulers Intercepted 2 | . 1 1 Recyclers Shooed 2 | . 1 1 Parts Field Recycled . | . . . Retrieved Matter . | . . . Parts Self-Destructed . | . . . Prevented . | . . . Kills | -11 -10 -9 ------- Run | Yrd Mat Mat Combat Hostiles Destroyed 16 | . 8 8 Guns 12 | . 6 6 AOE 4 | . 2 2 Classes Destroyed 7 | . 6 1 Worker 1 | . 1 . Hauler 2 | . 1 1 Recycler 5 | . 2 3 Watcher 4 | . 2 2 Swarmer 13 | . 6 7 Grunt 2 | . 2 . Sentry 1 | . . 1 Best Kill Streak 9 | . 9 6 Combat Bots Only 5 | . 5 3 Max Kills in Single Turn 6 | . 2 6 Gunslinging 1 | . . 1 Exploded 2 | . 2 2 Melee . | . . . Uniques/NPCs Destroyed . | . . . Combat | -11 -10 -9 -------- Run | Yrd Mat Mat Hostile Shots Fired 153 | . 30 123 Missed 50 | . 13 37 Hits 103 | . 17 86 Projectile 103 | . 17 86 Critical Strikes 1 | . . 1 Damage Taken 1198 | . 171 1027 Core 479 | . 74 405 Absorbed by Shields . | . . . Core Remaining (%) 85 | 100 70 . Volleys Fired 40 | . 16 24 Largest 3 | . 2 3 Hottest 189 | . 60 189 Shots Fired 83 | . 32 51 Gun 82 | . 31 51 Cannon . | . . . Launcher 1 | . 1 . Special . | . . . Kinetic 23 | . 16 7 Thermal 44 | . . 44 Explosive 1 | . 1 . Electromagnetic 15 | . 15 . Robot Hit Streak 6 | . 4 6 Robot Miss Streak 6 | . 3 6 Penetration Max . | . . . Secondary Targets 3 | . 1 2 Max Gunslinging Chain 1 | . 1 1 Shots Hit Robots 42 | . 17 25 Core Hits 43 | . 27 16 Critical Kills . | . . . Critical Parts Destroyed . | . . . Critical Strikes . | . . . Melee Attacks . | . . . Impact . | . . . Slashing . | . . . Piercing . | . . . Sneak Attacks . | . . . Combat Hostiles . | . . . Follow-up Attacks . | . . . Damage Inflicted 1583 | . 621 962 Guns 587 | . 178 409 Cannons . | . . . Explosions 985 | . 443 542 Melee . | . . . Ramming 11 | . . 11 Kinetic 113 | . 61 52 Thermal 1027 | . 128 899 Explosive 38 | . 38 . Electromagnetic 394 | . 394 . Impact . | . . . Slashing . | . . . Piercing . | . . . Highest Corruption . | . . . Average Corruption . | . . . Corruption Purged . | . . . Corruption Blocked . | . . . Overload Shots . | . . . Overflow Damage 184 | . 2 182 Projectiles . | . . . Explosions 184 | . 2 182 Melee . | . . . Knockbacks . | . . . Impact . | . . . Kinetic . | . . . Secondary . | . . . Self-Inflicted Damage 157 | . 13 144 Shots 3 | . 1 2 Rammed . | . . . Targets Rammed 3 | . . 3 Kicked 3 | . . 3 Crushed . | . . . Highest Temperature 647 | . 58 647 Average Temperature 217 | . 23 265 Received Heat Transfer 204 | . 18 186 Effects 13 | . . 13 Interference 2 | . . 2 Matter Decay 3 | . . 3 Damage (minor) 1 | . . 1 Damage (major) 6 | . . 6 Damage (core) 1 | . . 1 Siege Activations . | . . . Martial Activations . | . . . Shielding Activations . | . . . Robots Disrupted 1 | . 1 . Combat Hostiles 1 | . 1 . Robots Corrupted . | . . . Combat Hostiles . | . . . Parts Fried 2 | . 2 . Impact Corruptions . | . . . Robots Melted . | . . . Combat Hostiles . | . . . Parts Melted 1 | . . 1 Heat Transferred 1277 | . 200 1077 Parts Sabotaged . | . . . Parts Stolen . | . . . Parts Stripped . | . . . Power Chain Reactions 4 | . 4 . Alert | -11 -10 -9 ------- Run | Yrd Mat Mat Maximum Alert Level 1 | . 1 . Low Security (%) 81 | 100 36 100 Level 1 18 | . 63 . Level 2 . | . . . Level 3 . | . . . Level 4 . | . . . Level 5 . | . . . High Security . | . . . Max Security . | . . . Peak Influence 313 | . 313 161 Initial 106 | . . 106 Average 92 | . 189 62 Influence Increases 699 | . 363 336 Destroy 0b10 Robot/C 320 | . 160 160 Destroy 0b10 Robot/NC 60 | . 30 30 Destroy Leader 72 | . 36 36 Disable Machine 180 | . 120 60 Destroy Structure 52 | . 17 35 Lose Combat Pursuer 15 | . . 15 Influence Decreases 594 | . 110 484 Entered New Map 147 | . . 147 Time Decay 357 | . 110 247 Lost Part 90 | . . 90 Squads Dispatched 2 | . . 2 Investigation . | . . . Extermination . | . . . Reinforcement 2 | . . 2 Assault . | . . . Garrison . | . . . Intercept . | . . . Searches Triggered . | . . . Construction Impeded . | . . . Haulers Reinforced . | . . . Active Scanning Responses . | . . . Cargo Convoy Interrupts . | . . . Stealth | -11 -10 -9 --------- Run | Yrd Mat Mat Distress Signals 3 | . 1 2 Communications Jammed . | . . . Distress Signals . | . . . Times Spotted 33 | . 13 20 Peak Tracking Total 6 | . 3 6 Tactical Retreats 1 | . . 1 Traps | -11 -10 -9 ------- Run | Yrd Mat Mat Traps Triggered . | . . . Indirectly . | . . . Trap Hack Attempts . | . . . Triggered . | . . . Disarmed . | . . . Reprogrammed 1 | . 1 . Reused . | . . . Traps Extracted . | . . . Installed . | . . . Triggered . | . . . Machines | -11 -10 -9 ---------- Run | Yrd Mat Mat Machines Disabled 12 | . 8 4 Max in Single Turn 3 | . 3 3 Machines Repaired . | . . . Machines Dismantled . | . . . Machines Sabotaged . | . . . Overloaded Fab Kills . | . . . Hacking | -11 -10 -9 --------- Run | Yrd Mat Mat Machines Accessed 2 | . 2 . Terminals 1 | . 1 . Fabricators . | . . . Repair Stations . | . . . Recycling Units 1 | . 1 . Scanalyzers . | . . . Garrison Access . | . . . Total Hacks 2 | . 2 . Successful 2 | . 2 . Failed . | . . . Catastrophic . | . . . Database Lockouts . | . . . Manual . | . . . Terminals 1 | . 1 . Fabricators . | . . . Repair Stations . | . . . Recycling Units 1 | . 1 . Scanalyzers . | . . . Garrison Access . | . . . Terminal Hacks 1 | . 1 . Reprogram Traps 1 | . 1 . Fabricator Hacks . | . . . Repair Station Hacks . | . . . Recycling Unit Hacks 1 | . 1 . Retrieve Components 1 | . 1 . Scanalyzer . | . . . Garrison Access Hacks . | . . . Unauthorized Hacks . | . . . Terminals . | . . . Fabricators . | . . . Repair Stations . | . . . Recycling Units . | . . . Scanalyzers . | . . . Garrison Access . | . . . Data Cores Recovered . | . . . Used . | . . . Hacking Detections 1 | . 1 . Full Trace Events . | . . . Feedback Events . | . . . Feedback Blocked . | . . . Robot Schematics Acquired . | . . . Robots Built . | . . . Authchips . | . . . Time . | . . . Total Robot Build Rating . | . . . Part Schematics Acquired . | . . . Parts Built . | . . . Authchips . | . . . Time . | . . . Total Part Build Rating . | . . . Parts Repaired . | . . . Time . | . . . Parts Recycled . | . . . Recycled Matter . | . . . Retrieved Matter . | . . . Retrieved Components 10 | . 10 . Parts Scanalyzed . | . . . Part Schematics Acquired . | . . . Parts Damaged . | . . . Bothacking | -11 -10 -9 ------------ Run | Yrd Mat Mat Used RIF Installer . | . . . Robots Hacked . | . . . Non-combat . | . . . Combat . | . . . Robot Hacks Applied . | . . . Relay Couplers Released . | . . . Fabnet Peak Effective % . | . . . Robots Rewired . | . . . Allies Hacked . | . . . Hacks Repelled . | . . . Allies | -11 -10 -9 -------- Run | Yrd Mat Mat Total Allies . | . . . Largest Group . | . . . Highest-Rated Group . | . . . Highest-Rated Ally . | . . . Total Orders . | . . . Ally Attacks . | . . . Total Damage . | . . . Kills . | . . . Allies Corrupted . | . . . Allies Melted . | . . . Intel | -11 -10 -9 ------- Run | Yrd Mat Mat Active Infowar (turns) . | . . . Robot Analysis Total . | . . . Derelict Logs Recovered . | . . . Drone Launches . | . . . Drone Recoveries . | . . . Exploration | -11 -10 -9 ------------- Run | Yrd Mat Mat Turns Passed 1012 | 128 299 585 Spaces Moved 511 | 104 202 205 Core 40 | 20 . 20 Treads . | . . . Legs 471 | 84 202 185 Wheels . | . . . Hover . | . . . Flight . | . . . Fastest Speed 50 | 50 120 50 Average Speed 120 | 106 120 128 Slowest Speed 250 | 120 120 250 Overloaded Moves . | . . . Propulsion Burnouts . | . . . Robots Hopped . | . . . Potential Cave-ins . | . . . Cave-ins Triggered . | . . . Exploration Rate (%) 17 | 5 37 9 Regions Visited 2 Branch Regions . Pre-discovered Areas . | . . . Known Exits Taken . | . . . Unknown Exits Taken 2 | 1 1 . Scrap Searched . | . . . Spaces Dug . | . . . Terrain Destroyed 56 | . 15 41 Melee . | . . . Projectile . | . . . AOE 56 | . 15 41 Terrain Rammed . | . . . Walls Destroyed . | . . . Machines Disabled . | . . . Actions | -11 -10 -9 --------- Run | Yrd Mat Mat Total 844 | 121 232 491 Wait 218 | . . 218 Move 509 | 103 201 205 Hop . | . . . Pick Up 34 | 11 9 14 Fast Attach . | . . . Attach 18 | 6 1 11 Detach . | . . . Swap 4 | . . 4 Drop 18 | 1 5 12 Fire 40 | . 16 24 Melee . | . . . Ram . | . . . Kick 3 | . . 3 Crush . | . . . Escape Stasis . | . . . Rewire . | . . . Trap . | . . . Miscellaneous . | . . . Route ------- -11/Scrapyard -10/Materials (discovered 2 exits: [*Mat x2]) -9/Materials History --------- Turn | Location | Event 12 | -11/Scrapyard | Discovered new exit (range 15) 129 | -11/Scrapyard | Entered Materials 310 | -10/Materials | Discovered new exit (range 16) 324 | -10/Materials | Build established: Mutant 360 | -10/Materials | Discovered new exit (range 15) 428 | -10/Materials | Entered another Materials area 428 | -9/Materials | Evolved 2 slots: Power x1, Weapon x1 736 | -9/Materials | Build established: Gunner 981 | -9/Materials | Core integrity fell below 50% 999 | -9/Materials | Core integrity fell below 20% 1013 | -9/Materials | Destroyed by G-34 Mercenary with Small Laser Last Messages --------------- 00991_ K-01 Serf collects debris. 00991_ Acquired Lgt. Ion Engine. 00993_ U-05 Engineer lays Concrete. 00993_ R-06 Scavenger collects Grenade Launcher. 00994_ K-01 Serf collects debris. 00994_ U-05 Engineer lays Concrete. 00994_ Acquired Assault Rifle. 00995_ U-05 Engineer builds a Wall. 00996_ R-06 Scavenger destroyed. 00997_ K-01 Serf collects debris. 00998_ Destroyed Flight Unit. 01000_ K-01 Serf collects debris. 01001_ U-05 Engineer lays Concrete. 01002_ U-05 Engineer builds a Door. 01003_ Lgt. Ion Engine destroyed. 01003_ K-01 Serf collects debris. 01007_ U-05 Engineer builds a Wall. 01009_ K-01 Serf collects debris. 01011_ U-05 Engineer lays Concrete. 01012_ K-01 Serf collects debris. Map ----- +----------------------------------------------------+ | ???????????????????????? ????????????????????????? | | ???????????????????????# #???????????????????????? | | ???????????????????????# #???????????????????????? | | ???????????????????????# #???????????????????????? | | ???????????????????????# #???????????????????????? | | ???????????????????????# #???????????????????????? | | ???????????????????????# #???????????????????????? | | ???????????????????????# #???????????????????????? | | ???????????????????????# #???????????????????????? | | ???????????????????????# #???????????????????????? | | ?????????????###???????# #???????????????????????? | | ?????????????? ??????# #???????????????? ??????? | | ?????????????? ??????# #???##+######## ??????? | | ?????????# ??"" ?????# ##### T??????? | | ?????????# """< ?????# ????????? | | ?????????# "<<< ?#### ?????????? | | ?????????# %< ##;;# ####????????????? | | ?????????# [%= #???????????????? | | ?????????# ; [!;;### #???????????????? | | ????????######+###; ; # = ###############?? | | ???????+ /u kg ; ## % # #?? | | ????????????# #g g = ; ## % # #?? | | ????????????# ; s ; ## # """ #?? | | ????????????# ; !! ==; ######+### + """ #?? | | ?????????#### ; b%! ; ; # # """ #?? | | ???????? ; g ] @ # """ # % # #?? | | ???????? # / ### """ # ########?? | | ???????? ?# k / = #?# """ # #####????? | | ???????? ??#### ######?# # #????? | | ????????? ???????##???????# """ # #????? | | ????????? ?????????????????# """ # #????? | | ???????????????????????????# """ # ! #????? | | ???????????????????????????# # #????? | | ???????????????????????????########## #????? | | ????????????????????????????????????#########????? | | ?????????????????????????????????????????????????? | | ?????????????????????????????????????????????????? | | ?????????????????????????????????????????????????? | | ?????????????????????????????????????????????????? | | ?????????????????????????????????????????????????? | | | | | | | | | | | | | | | | | | | | | +----------------------------------------------------+ Best States ------------- Heat Dissipation 28 Energy Generation 23 Energy Capacity 220 Matter Stores 300 Matter Capacity 300 Sight Range 16 Terrain Scan Density 10 Base Temperature (-) 100 Evasion (%) 55 Targeting Accuracy 5 Item Schematics ----------------- None Robot Schematics ------------------ None Fabricated ------------ Nothing Repaired ---------- Nothing Alien Tech Used ----------------- None Achievements -------------- None Challenges ------------ None Game ------ Seed GaussMobilePit Manual? 0 Play Time 00:09:35 Cumulative 3.0 hours Start 2025.08.19 @ 00:14:02 End 2025.08.19 @ 00:22:41 Sessions 1 Manual Loads 0 Difficulty Rogue Special Mode None Game No. 7 Rogue 7 Adventurer 0 Explorer 0 Win Type - Total 0 Types 0/0/0/0/0/0/0/0/0/0 Lore% 3 Gallery% 6 Achievement% 8 Wizard Run 0 Options --------- Layout 0 ASCII 0 Keyboard 0 Movement Arrows Keybinds 0 Fullscreen 2 Font 24/Terminus Map View 76x50 Zoom Use 2% Tactical HUD 1 Map Filters NONE Filters NONE Steam 1 RUN: 7f9fa47b-0559-4162-89fa-e5338ae666bb